Cogmind - Beta 15 @@@ ROGUE MODE // 2025.10.08 @ 19:53:43 Player: mgobin-777 Result: Self-destructed Performance ------------- Evolutions (3) 1500 Regions Visited (4) 800 Robots Destroyed (114) 570 Value Destroyed (3274) 3274 Prototype IDs (4) 80 Alien Tech Used (0) 0 Bonus (134) 134 TOTAL SCORE: 6358 Bonus ------- High Alert Combat Kills 134 Cogmind --------- Core Integrity 492/700 Matter 241/300 Energy 123/240 System Corruption 8% Temperature Cool (0) Movement Rolling (100) Location -7/Factory Parts ------- > --- POWER (2) -------- Nuclear Core > --- PROPULSION (4) --- Armored Huge Wheel Armored Huge Wheel > --- UTILITY (4) ------ Medium Storage Unit Improved Shield Generator > --- WEAPON (3) ------- High-powered Shotgun Rocket Launcher Heavy Flail > --- INVENTORY (10) --- Reinforced Deuterium Engine Armored Huge Wheel Heavy Particle Cannon Plasma Cannon Plasma Cannon Plasma Cannon Plasma Cannon Mini Assault Cannon Peak State ------------ > --- POWER ------------ Deuterium Engine Light Nuclear Core > --- PROPULSION ------- Armored Huge Wheel Armored Huge Wheel > --- UTILITY ---------- Improved Heat Sink Coolant Injector Medium Storage Unit Insulated Plating > --- WEAPON ----------- Heavy Particle Gun Improved Spread Laser Plasma Cannon > --- INVENTORY -------- Nuclear Core Armored Huge Wheel Target Analyzer Heavy Particle Cannon Plasma Cannon Plasma Cannon Plasma Cannon EMP Blaster [Rating: 49] Favorites ----------- Power Deuterium Engine Engine Deuterium Engine Power Core Nuclear Core Propulsion Aluminum Leg Leg Aluminum Leg Wheel Armored Huge Wheel Utility Medium Storage Unit Device Improved Heat Sink Storage Medium Storage Unit Protection Hardened Light Armor Plating Weapon Autogun Energy Gun Medium Laser Energy Cannon Beam Cannon Ballistic Gun Autogun Ballistic Cannon Flak Cannon Launcher EMP Blaster Impact Weapon Heavy Flail Build | -11 -10 -9 -8 -7 ------- Run | Yrd Mat Mat Mat Fac Slots Evolved 6 | . . 2 2 2 Power 1 | . . . . 1 Propulsion 2 | . . . 1 1 Utility 2 | . . 2 . . Weapon 1 | . . . 1 . Parts Attached 64 | 6 12 12 20 14 Power 10 | 1 3 1 2 3 Engine 7 | 1 3 1 2 . Core 3 | . . . . 3 Reactor . | . . . . . Propulsion 16 | 2 3 3 7 1 Treads . | . . . . . Leg 6 | 2 3 1 . . Wheel 10 | . . 2 7 1 Hover . | . . . . . Flight . | . . . . . Utility 15 | 1 3 5 3 3 Device 11 | . 2 4 2 3 Storage 2 | 1 1 . . . Processor . | . . . . . Hackware . | . . . . . Protection 2 | . . 1 1 . Artifact . | . . . . . Weapon 23 | 2 3 3 8 7 Energy Gun 6 | . 2 . 3 1 Energy Cannon 6 | . . 3 1 2 Ballistic Gun 5 | 2 1 . 1 1 Ballistic Cannon 3 | . . . 2 1 Launcher 2 | . . . 1 1 Special Weapon . | . . . . . Impact Weapon 1 | . . . . 1 Slashing Weapon . | . . . . . Piercing Weapon . | . . . . . Special Melee Weapon . | . . . . . Unidentified Prototypes 4 | . . . 2 2 Parts Lost 17 | . 1 5 5 6 Power 4 | . 1 1 . 2 Propulsion 4 | . . 1 3 . Utility 7 | . . 3 2 2 Weapon 2 | . . . . 2 Highest Loss Streak 4 | . 1 2 2 4 To Critical Strikes . | . . . . . Average Backups 5 | . 2 4 7 7 Power . | . . . 2 . Propulsion . | . . . . 1 Utility . | . . . . . Weapon 3 | . 2 4 4 5 Tool/Special . | . . . . . Unused Backups 15 | 1 . 3 3 8 Power 3 | 1 . . 1 1 Propulsion 2 | . . 1 . 1 Utility 4 | . . . 1 3 Weapon 6 | . . 2 1 3 Tool/Special . | . . . . . Average Slot Usage (%) 87 | . 96 83 89 78 Engine 9 | . 12 10 9 6 Core 1 | . . . . 6 Leg 9 | . 27 10 . . Wheel 11 | . . 8 22 14 Device 15 | . 12 17 17 14 Storage 10 | . 14 11 9 7 Protection 2 | . . 3 4 3 Energy Gun 6 | . 12 2 4 7 Energy Cannon 6 | . . 13 6 6 Ballistic Gun 8 | . 14 5 9 3 Ballistic Cannon 2 | . . . 6 1 Peak Build Rating 49 | 6 8 15 34 49 Average Rating 20 | 3 7 11 23 44 On Entrance 12 | . 6 8 14 33 Naked Turns . | . . . . . Heaviest Build 47 | 12 21 33 40 47 Greatest Support 56 | 20 20 26 42 56 Greatest Overweight (x) 11 | . 1 2 11 . Average Overweight (x) . | . . 1 . . Largest Inventory Capacity 10 | 8 10 10 10 10 Average Capacity 9 | 6 9 10 10 10 Most Carried 10 | 5 6 7 10 10 Average Carried 5 | 1 2 4 7 8 Final Capacity 10 | 8 10 10 10 10 Final Carried 10 | . 4 4 10 9 Class Distribution -------------------- 42% | Mutant 28% | Tank 12% | Scavenger-Mutant 7% | Gunner 5% | Scavenger-Gunner 3% | Scavenger-Tank Dominant Class ---------------- Mutant | -10/Materials Scavenger-Mutant | -9/Materials Tank | -8/Materials Tank | -7/Factory Resources | -11 -10 -9 -8 -7 ----------- Run | Yrd Mat Mat Mat Fac Matter Collected 1945 | 114 526 266 893 146 Remotely . | . . . . . Salvage Created 4247 | . 985 1018 1606 638 Parts 246 | . 63 64 94 25 Haulers Intercepted 5 | . 2 1 1 1 Recyclers Shooed 7 | . 5 1 1 . Parts Field Recycled . | . . . . . Retrieved Matter . | . . . . . Parts Self-Destructed . | . . . . . Prevented . | . . . . . Kills | -11 -10 -9 -8 -7 ------- Run | Yrd Mat Mat Mat Fac Combat Hostiles Destroyed 75 | . 17 16 29 13 Guns 31 | . 17 2 9 3 Cannons 34 | . . 12 14 8 AOE 6 | . . . 5 1 Classes Destroyed 14 | . 8 2 2 2 Worker 8 | . 2 3 3 . Builder 10 | . 1 3 4 2 Hauler 5 | . 2 1 1 1 Recycler 6 | . 3 1 2 . Mechanic 1 | . . . 1 . Operator 3 | . 1 . 1 1 Watcher 6 | . 3 . 2 1 Swarmer 13 | . 6 . 6 1 Grunt 45 | . 11 8 17 9 Brawler 1 | . . . . 1 Duelist 2 | . . 1 . 1 Sentry 12 | . . 7 5 . Hunter 1 | . . . 1 . Programmer 1 | . . . . 1 Best Kill Streak 10 | . 5 4 10 5 Combat Bots Only 5 | . 4 4 5 5 Max Kills in Single Turn 3 | . 2 2 3 2 Gunslinging 1 | . 1 . . . Exploded 2 | . . . 2 1 Melee . | . . . . . Uniques/NPCs Destroyed . | . . . . . Combat | -11 -10 -9 -8 -7 -------- Run | Yrd Mat Mat Mat Fac Hostile Shots Fired 441 | . 86 73 137 145 Missed 143 | . 32 24 46 41 Hits 298 | . 54 49 91 104 Melee 15 | . . 4 . 11 Projectile 283 | . 54 45 91 93 Critical Strikes 6 | . . 1 3 2 Damage Taken 4055 | . 634 757 1287 1377 Core 628 | . 98 166 156 208 Absorbed by Shields 364 | . . 42 72 250 Ignored by Resistances 12 | . . . . 12 Regen/Repaired (Parts) 86 | . 53 . . 33 Core Remaining (%) 72 | 100 60 58 71 . Volleys Fired 263 | . 80 65 77 41 Largest 3 | . 2 2 3 3 Hottest 230 | . 73 128 158 230 Shots Fired 619 | . 158 127 223 111 Gun 382 | . 158 50 110 64 Cannon 230 | . . 77 108 45 Launcher 7 | . . . 5 2 Special . | . . . . . Kinetic 256 | . 92 24 132 8 Thermal 356 | . 66 103 86 101 Explosive . | . . . . . Electromagnetic 7 | . . . 5 2 Robot Hit Streak 14 | . 14 12 11 12 Robot Miss Streak 8 | . 6 3 8 4 Penetration Max . | . . . . . Secondary Targets 4 | . 4 . . . Max Gunslinging Chain 1 | . 1 . . . Shots Hit Robots 398 | . 95 82 136 85 Core Hits 244 | . 47 32 107 58 Critical Kills 1 | . 1 . . . Critical Parts Destroyed . | . . . . . Critical Strikes 8 | . 5 1 1 1 Burn 7 | . 4 1 1 1 Destroy 1 | . 1 . . . Melee Attacks 4 | . . . . 4 Impact 4 | . . . . 4 Slashing . | . . . . . Piercing . | . . . . . Sneak Attacks . | . . . . . Combat Hostiles . | . . . . . Follow-up Attacks . | . . . . . Damage Inflicted 7932 | . 1330 1498 2713 2391 Guns 4049 | . 1290 440 1113 1206 Cannons 3161 | . . 1001 1354 806 Explosions 503 | . . . 207 296 Melee 73 | . . . . 73 Ramming 146 | . 40 57 39 10 Kinetic 2469 | . 741 186 1432 110 Thermal 4864 | . 549 1255 1074 1986 Explosive 80 | . . . . 80 Electromagnetic 300 | . . . 168 132 Impact 73 | . . . . 73 Slashing . | . . . . . Piercing . | . . . . . Highest Corruption 8 | . . . . 8 Average Corruption 6 | . . . . 6 Corruption Purged . | . . . . . Corruption Blocked . | . . . . . Effects 16 | . . . . 16 Message Errors 6 | . . . . 6 Matter Fused 2 | . . . . 2 Energy Discharges 3 | . . . . 3 Data Loss (minor) 1 | . . . . 1 Data Loss (major) 3 | . . . . 3 Misfires 1 | . . . . 1 Overload Shots . | . . . . . Overflow Damage 189 | . . 10 . 179 Projectiles 33 | . . 10 . 23 Explosions 107 | . . . . 107 Melee 49 | . . . . 49 Knockbacks 30 | . 1 1 28 . Impact 3 | . 1 1 1 . Kinetic 26 | . . . 26 . Secondary 1 | . . . 1 . Self-Inflicted Damage 104 | . . 20 23 61 Shots 2 | . . . 1 1 Rammed 12 | . . 6 5 1 Targets Rammed 23 | . 7 10 5 1 Kicked 11 | . 7 4 . . Crushed . | . . . . . Highest Temperature 294 | . 36 280 164 294 Average Temperature 75 | . 11 63 55 116 Received Heat Transfer 1348 | . 201 213 605 329 Effects 3 | . . 3 . . Energy Bleed 1 | . . 1 . . Interference 2 | . . 2 . . Siege Activations . | . . . . . Martial Activations . | . . . . . Shielding Activations . | . . . . . Robots Disrupted . | . . . . . Combat Hostiles . | . . . . . Robots Corrupted . | . . . . . Combat Hostiles . | . . . . . Parts Fried 1 | . . . 1 . Impact Corruptions 2 | . . . . 2 Robots Melted 4 | . . 2 1 1 Combat Hostiles 4 | . . 2 1 1 Parts Melted 23 | . 7 5 5 6 Heat Transferred 9943 | . 1924 2775 2265 2979 Parts Sabotaged . | . . . . . Parts Stolen . | . . . . . Parts Stripped . | . . . . . Power Chain Reactions 3 | . . . 3 . Alert | -11 -10 -9 -8 -7 ------- Run | Yrd Mat Mat Mat Fac Maximum Alert Level 2 | . . . 2 2 Low Security (%) 54 | 100 100 100 13 3 Level 1 29 | . . . 47 72 Level 2 15 | . . . 38 24 Level 3 . | . . . . . Level 4 . | . . . . . Level 5 . | . . . . . High Security . | . . . . . Max Security . | . . . . . Peak Influence 537 | . 143 181 537 460 Initial 227 | . . 28 73 227 Average 202 | . 74 57 328 359 Influence Increases 2590 | . 497 573 936 584 Destroy 0b10 Robot/C 1500 | . 340 320 580 260 Destroy 0b10 Robot/NC 195 | . 60 40 70 25 Destroy Leader 382 | . 80 132 126 44 Successful Hack 50 | . . 2 . 48 Disable Machine 150 | . . 15 30 105 Destroy Structure 43 | . 2 4 10 27 Lose Combat Pursuer 270 | . 15 60 120 75 Influence Decreases 2237 | . 428 467 610 732 Entered New Map 417 | . . 41 102 274 Time Decay 1657 | . 418 383 458 398 Lost Part 163 | . 10 43 50 60 Squads Dispatched 16 | . 3 4 3 6 Investigation 5 | . . 2 2 1 Extermination 2 | . . . . 2 Reinforcement 9 | . 3 2 1 3 Assault . | . . . . . Garrison . | . . . . . Intercept . | . . . . . Searches Triggered . | . . . . . Construction Impeded 1 | . . . . 1 Haulers Reinforced . | . . . . . Active Scanning Responses . | . . . . . Cargo Convoy Interrupts . | . . . . . Stealth | -11 -10 -9 -8 -7 --------- Run | Yrd Mat Mat Mat Fac Distress Signals 9 | . 3 4 2 . Communications Jammed . | . . . . . Distress Signals . | . . . . . Times Spotted 132 | . 34 28 46 24 Peak Tracking Total 8 | . 4 5 8 5 Tactical Retreats 10 | . 1 2 4 3 Traps | -11 -10 -9 -8 -7 ------- Run | Yrd Mat Mat Mat Fac Traps Triggered 11 | . 3 2 3 3 Indirectly . | . . . . . Trap Hack Attempts . | . . . . . Triggered . | . . . . . Disarmed . | . . . . . Reprogrammed . | . . . . . Reused . | . . . . . Traps Extracted . | . . . . . Installed . | . . . . . Triggered . | . . . . . Machines | -11 -10 -9 -8 -7 ---------- Run | Yrd Mat Mat Mat Fac Machines Disabled 10 | . . 1 2 7 Max in Single Turn 5 | . . 1 1 5 Machines Repaired . | . . . . . Machines Dismantled . | . . . . . Machines Sabotaged . | . . . . . Overloaded Fab Kills . | . . . . . Hacking | -11 -10 -9 -8 -7 --------- Run | Yrd Mat Mat Mat Fac Machines Accessed 4 | . 1 2 . 1 Terminals 1 | . . 1 . . Fabricators . | . . . . . Repair Stations 2 | . 1 . . 1 Recycling Units 1 | . . 1 . . Scanalyzers . | . . . . . Garrison Access . | . . . . . Total Hacks 11 | . 3 5 . 3 Successful 7 | . 2 3 . 2 Failed 4 | . 1 2 . 1 Catastrophic 1 | . . . . 1 Database Lockouts . | . . . . . Manual . | . . . . . Terminals 1 | . . 1 . . Fabricators . | . . . . . Repair Stations 6 | . 3 . . 3 Recycling Units 4 | . . 4 . . Scanalyzers . | . . . . . Garrison Access . | . . . . . Terminal Hacks 1 | . . 1 . . Record 1 | . . 1 . . Fabricator Hacks . | . . . . . Repair Station Hacks 4 | . 2 . . 2 Scan Component 2 | . 1 . . 1 Repair 2 | . 1 . . 1 Recycling Unit Hacks 2 | . . 2 . . Report Inventory 1 | . . 1 . . Retrieve Components 1 | . . 1 . . Scanalyzer . | . . . . . Garrison Access Hacks . | . . . . . Unauthorized Hacks . | . . . . . Terminals . | . . . . . Fabricators . | . . . . . Repair Stations . | . . . . . Recycling Units . | . . . . . Scanalyzers . | . . . . . Garrison Access . | . . . . . Data Cores Recovered . | . . . . . Used . | . . . . . Hacking Detections 4 | . 1 2 . 1 Full Trace Events 1 | . . . . 1 Feedback Events 1 | . . . . 1 Corruption 1 | . . . . 1 Feedback Blocked . | . . . . . Robot Schematics Acquired . | . . . . . Robots Built . | . . . . . Authchips . | . . . . . Time . | . . . . . Total Robot Build Rating . | . . . . . Part Schematics Acquired . | . . . . . Parts Built . | . . . . . Authchips . | . . . . . Time . | . . . . . Total Part Build Rating . | . . . . . Parts Repaired 2 | . 1 . . 1 Time 40 | . 26 . . 14 Parts Recycled . | . . . . . Recycled Matter . | . . . . . Retrieved Matter . | . . . . . Retrieved Components 3 | . . 3 . . Parts Scanalyzed . | . . . . . Part Schematics Acquired . | . . . . . Parts Damaged . | . . . . . Bothacking | -11 -10 -9 -8 -7 ------------ Run | Yrd Mat Mat Mat Fac Used RIF Installer . | . . . . . Robots Hacked . | . . . . . Non-combat . | . . . . . Combat . | . . . . . Robot Hacks Applied . | . . . . . Relay Couplers Released . | . . . . . Fabnet Peak Effective % . | . . . . . Robots Rewired . | . . . . . Allies Hacked . | . . . . . Hacks Repelled . | . . . . . Allies | -11 -10 -9 -8 -7 -------- Run | Yrd Mat Mat Mat Fac Total Allies . | . . . . . Largest Group . | . . . . . Highest-Rated Group . | . . . . . Highest-Rated Ally . | . . . . . Total Orders . | . . . . . Ally Attacks . | . . . . . Total Damage . | . . . . . Kills . | . . . . . Allies Corrupted . | . . . . . Allies Melted . | . . . . . Intel | -11 -10 -9 -8 -7 ------- Run | Yrd Mat Mat Mat Fac Active Infowar (turns) . | . . . . . Robot Analysis Total . | . . . . . Derelict Logs Recovered . | . . . . . Drone Launches . | . . . . . Drone Recoveries . | . . . . . Exploration | -11 -10 -9 -8 -7 ------------- Run | Yrd Mat Mat Mat Fac Turns Passed 4257 | 47 1059 1039 1158 954 Spaces Moved 2387 | 38 500 459 830 560 Core 18 | 16 . . 2 . Treads . | . . . . . Legs 758 | 22 500 236 . . Wheels 1611 | . . 223 828 560 Hover . | . . . . . Flight . | . . . . . Fastest Speed 50 | 50 120 90 90 100 Average Speed 116 | 90 132 154 98 100 Slowest Speed 600 | 120 190 260 600 100 Overloaded Moves . | . . . . . Propulsion Burnouts . | . . . . . Robots Hopped . | . . . . . Potential Cave-ins . | . . . . . Cave-ins Triggered . | . . . . . Exploration Rate (%) 37 | 4 82 41 47 14 Regions Visited 4 Branch Regions . Pre-discovered Areas . | . . . . . Known Exits Taken . | . . . . . Unknown Exits Taken 4 | 1 1 1 1 . Scrap Searched . | . . . . . Spaces Dug . | . . . . . Terrain Destroyed 37 | . . . 8 29 Melee . | . . . . . Projectile 6 | . . . 5 1 AOE 31 | . . . 3 28 Terrain Rammed . | . . . . . Walls Destroyed . | . . . . . Machines Disabled . | . . . . . Actions | -11 -10 -9 -8 -7 --------- Run | Yrd Mat Mat Mat Fac Total 3334 | 51 738 661 1022 862 Wait 439 | . 107 89 37 206 Move 2383 | 37 499 458 829 560 Hop . | . . . . . Pick Up 86 | 7 19 16 27 17 Fast Attach 1 | . . . 1 . Attach 40 | 6 6 9 11 8 Detach 2 | . . . 1 1 Swap 40 | . 11 5 15 9 Drop 48 | 1 9 9 19 10 Fire 263 | . 80 65 77 41 Melee 4 | . . . . 4 Ram 12 | . . 6 5 1 Kick 11 | . 7 4 . . Crush . | . . . . . Escape Stasis 5 | . . . . 5 Rewire . | . . . . . Trap . | . . . . . Miscellaneous . | . . . . . Route ------- -11/Scrapyard -10/Materials (discovered 4 exits: *Mat x2 / [*Min x2]) -9/Materials (discovered 2 exits: [*Mat] / [*Min]) -8/Materials -7/Factory History --------- Turn | Location | Event 9 | -11/Scrapyard | Discovered new exit (range 15) 48 | -11/Scrapyard | Entered Materials 302 | -10/Materials | Build established: Mutant 513 | -10/Materials | Discovered new exit (range 9) 567 | -10/Materials | Discovered new exit (range 9) 869 | -10/Materials | Discovered new exit (range 7) 1031 | -10/Materials | Repaired Med. Laser 1044 | -10/Materials | Discovered new exit (range 9) 1107 | -10/Materials | Entered another Materials area 1107 | -9/Materials | Evolved 2 slots: Utility x2 1502 | -9/Materials | Build established: Scavenger-Mutant 2028 | -9/Materials | Build established: Mutant 2099 | -9/Materials | Discovered new exit (range 11) 2099 | -9/Materials | Discovered new exit (range 3) 2146 | -9/Materials | Entered another Materials area 2146 | -8/Materials | Evolved 2 slots: Propulsion x1, Weapon x1 3284 | -8/Materials | Discovered new exit (range 13) 3304 | -8/Materials | Entered Factory 3304 | -7/Factory | Evolved 2 slots: Power x1, Propulsion x1 3510 | -7/Factory | Build established: Tank 3791 | -7/Factory | Lost 4 parts (1p1u2w) 4165 | -7/Factory | Repaired Imp. Shield Generator 4258 | -7/Factory | Self-destructed Last Messages --------------- 04167_ Connecting with Repair Station... Feedback: System corruption (+1%). 04167_ ALERT: Suspicious activity at Repair Station F003. Dispatching Investigation squad. 04170_ System corrupted: Matter fused (-5). 04195_ Acquired Imp. Shield Generator. 04206_ ZF69N4I&W>ACZ|0O E:XBNB|>Y1C/DKYB2H8 04221_ K-01 Serf cleans the Fusion Modulator. 04230_ System corrupted: Substantial component data lost. 04232_ K-01 Serf cleans the Fusion Modulator. 04243_ Deuterium Engine destroyed. 04252_ Destroyed Target Analyzer. 04252_ Destroyed Imp. Heat Sink. 04252_ P-60 Hacker system corrupted by crushing effect. 04253_ P-60 Hacker misfires. 04255_ Imp. Heat Sink destroyed. 04258_ Dropped Imp. Shield Generator. Map ----- +----------------------------------------------------+ | ? ????????????????????????????????????????????? | | ?? ???????????????????????????????????????????? | | ???####??????????????????????????????????????????? | | ?????????????????????????????????????????????????? | | ?????????????????????????????????????????????????? | | ##########???????????????????????????????????????? | | #???????????????????????????????????????? | | ] """#???????????????????????????????????????? | | """ """#???????????????????????????????????????? | | """ R"#???????????????????????????????????????? | | """ """#???????????????????????????????????????? | | "" #?????????+#????????????????????????????? | | #????????? ????????????????????????????? | | ! #????????? #????????????????????????????? | | #+########????????? #????????????????????????????? | | #???????????????? #????????????????????????????? | | ################# ##############???????????????? | | # #???????????????? | | # """ """ #???????????????? | | # """ """ !#???????????????? | | """"""" """ # """ """ #???????????????? | | """"""" """ # #########???????? | | """"""" """ # """ """ + ? | | """"""" + """ """ #########???????? | | # """ """ #???????????????? | | ? + p@ Y #???????????????? | | ###+#####+########### #???????????????? | | #??????????????# = #???????????????? | | """ ???????????????# #???????????????? | | ""??????????????????##############???????????????? | | ""???????????????????????????????????????????????? | | ""???????????????????????????????????????????????? | | ""???????????????????????????????????????????????? | | ""???????????????????????????????????????????????? | | "????????????????????????????????????????????????? | | "????????????????????????????????????????????????? | | "????????????????????????????????????????????????? | | ????????????????????????????????????????????????? | | ???????????????????????????????????????????????? | | ##???????????????????????????????????????????????? | | ?????????????????????????????????????????????????? | | ?????????????????????????????????????????????????? | | ?????????????????????????????????????????????????? | | ?????????????????????????????????????????????????? | | ?????????????????????????????????????????????????? | | ?????????????????????????????????????????????????? | | ?????????????????????????????????????????????????? | | ?????????????????????????????????????????????????? | | ?????????????????????????????????????????????????? | | ?????????????????????????????????????????????????? | +----------------------------------------------------+ Best States ------------- Heat Dissipation 70 Coolant Potential 65 Energy Generation 23 Energy Capacity 415 Matter Stores 300 Matter Capacity 300 Sight Range 16 Terrain Scan Density 10 Armor Coverage 150 Resistance: EM 15 Weapon Cycling 15 Evasion (%) 55 Item Schematics ----------------- None Robot Schematics ------------------ None Fabricated ------------ Nothing Repaired ---------- Med. Laser | 24% | -10/Materials Imp. Shield Generator | 17% | -7/Factory Alien Tech Used ----------------- None Achievements -------------- None Challenges ------------ None Game ------ Seed MiniThrusterPit Manual? 0 Play Time 00:35:55 Cumulative 26.7 hours Start 2025.10.06 @ 15:44:50 End 2025.10.08 @ 19:53:43 Sessions 5 Manual Loads 0 Difficulty Rogue Special Mode None Game No. 78 Rogue 72 Adventurer 6 Explorer 0 Win Type - Total 0 Types 0/0/0/0/0/0/0/0/0/0 Lore% 10 Gallery% 21 Achievement% 20 Wizard Run 0 Options --------- Layout 1 ASCII 0 Keyboard 0 Movement Numpad Keybinds 0 Fullscreen 1 Font 24/Smallcaps Map View 50x40 Zoom Use 0% Tactical HUD 1 Map Filters NONE Filters NONE Steam 1 RUN: 6568b572-695e-4940-8a9c-cbcbd8d5b85a